bitfinex/quotes_SOLUSD_20241213
["timestamp","ask_amount","ask_price","bid_price","bid_amount"]
[1734124516028,1.774307,223.66,223.55,7.8664]
[1734124516327,3.0888193,223.67,223.55,7.8664]
[1734124517927,4.85883627,223.67,223.55,7.8664]
[1734124518129,7.48945165,223.67,223.55,7.8664]
[1734124518339,20.0,223.64,223.55,7.8664]
[1734124518633,6.99316605,223.73,223.59,6.2714]
[1734124518931,6.99316605,223.74,223.59,6.2714]
[1734124519137,0.12549,223.75,223.59,6.2714]
[1734124519435,0.12549,223.75,223.61,6.2714]
[1734124519650,4.12963102,223.76,223.61,6.2714]
[1734124520435,0.12549,223.75,223.61,6.2714]
[1734124520805,20.0,223.72,223.61,6.2714]
[1734124521129,0.12549,223.7,223.61,6.2714]
[1734124521325,23.902374,223.7,223.61,6.2714]
[1734124521543,20.0,223.67,223.61,6.2714]
[1734124522928,23.902374,223.71,223.61,6.2714]
[1734124523128,20.0,223.68,223.61,6.2714]
[1734124524615,4.12963102,223.72,223.61,6.2714]
[1734124525924,4.12963102,223.72,223.62,1.608]
[1734124526139,1.79102519,223.76,223.62,1.608]
[1734124526438,4.12963102,223.78,223.62,1.608]
[1734124527129,2.68299574,223.74,223.62,1.608]
[1734124527344,20.0,223.77,223.62,1.608]
[1734124527708,0.12549,223.76,223.62,1.608]
[1734124528924,20.0,223.75,223.62,1.608]
[1734124531605,22.65189505,223.75,223.62,1.608]
[1734124531811,22.65189505,223.75,223.63,6.4918]
[1734124532115,20.0,223.71,223.63,6.4918]
[1734124532825,0.12549,223.7,223.63,6.4918]
[1734124533930,20.0,223.71,223.63,6.4918]
[1734124535336,21.77154427,223.71,223.63,6.4918]
[1734124535512,20.0,223.67,223.63,6.4918]
[1734124538432,1.77154427,223.71,223.63,6.4918]
[1734124538616,23.776884,223.74,223.63,6.4918]
[1734124539736,20.0,223.71,223.63,6.4918]
[1734124545623,2.65189505,223.75,223.63,6.4918]
[1734124546032,4.12963102,223.78,223.64,8.0465]
[1734124546441,2.66393175,223.76,223.64,8.0465]
[1734124547751,20.0,223.75,223.64,8.0465]
[1734124553535,20.0,223.75,223.65,1.5332]
[1734124553737,20.0,223.75,223.66,6.6486]
[1734124554152,20.0,223.75,223.67,1.6179]
[1734124554360,20.0,223.75,223.68,6.059]
[1734124554551,1.81250447,223.78,223.69,1.6179]
[1734124554753,82.74461555,223.86,223.7,6.059]
[1734124554944,0.12549,223.85,223.7,6.059]
[1734124555140,0.12549,223.85,223.71,1.6179]
[1734124555341,0.12549,223.85,223.71,7.6769]
[1734124555948,24.027864,223.85,223.71,7.6769]
[1734124557042,20.0,223.82,223.71,7.6769]
[1734124557942,22.68016074,223.82,223.71,7.6769]
[1734124559258,20.0,223.83,223.72,6.5059]
[1734124560934,20.0,223.79,223.72,6.5059]
[1734124567769,21.77495085,223.79,223.72,6.5059]
[1734124574978,20.0,223.79,223.72,6.5059]
[1734124576980,82.74461555,223.86,223.72,14.95899865]
[1734124577302,78.61498453,223.9,223.75,6.153]
[1734124577501,78.61498453,223.9,223.76,1.506]
[1734124578005,87.41216702,223.9,223.76,1.506]
[1734124578160,0.12549,223.89,223.76,1.506]
[1734124578671,20.0,223.87,223.76,1.506]
[1734124579067,20.0,223.83,223.76,1.506]
[1734124586788,4.12963102,223.9,223.76,1.506]
[1734124586959,5.91496592,223.9,223.76,1.506]
[1734124587391,5.91496592,223.9,223.77,6.1295]
[1734124588677,20.0,223.87,223.77,6.1295]
[1734124593276,0.535224,223.92,223.79,7.837]
[1734124593583,0.535224,223.92,223.81,6.3318]
[1734124593787,0.535224,223.92,223.82,7.837]
[1734124599368,20.0,223.89,223.82,7.837]
[1734124599572,20.0,223.88,223.82,7.837]
[1734124600077,20.0,223.89,223.82,7.837]
[1734124605083,0.12549,223.88,223.82,7.837]
[1734124607188,23.902374,223.91,223.82,7.837]
[1734124607575,0.12549,223.91,223.82,7.837]
[1734124607789,0.535224,223.92,223.82,7.837]
[1734124609291,20.535224,223.92,223.82,7.837]
[1734124609495,0.535224,223.92,223.82,7.837]
[1734124615091,0.535224,223.92,223.83,0.25098]
[1734124615290,0.535224,223.92,223.85,6.5536]
[1734124621079,0.535224,223.92,223.88,1.6114]
[1734124621281,0.535224,223.92,223.89,6.5536]
[1734124624606,26.3142883,224.08,223.91,14.91899865]
[1734124624793,26.3142883,224.08,223.94,1.6092]
[1734124624794,2.61216253,224.07,223.94,1.6092]
[1734124625127,10.20673717,224.08,223.94,1.6092]
[1734124626095,20.0,224.05,223.94,1.6092]
[1734124629305,20.0,224.05,223.95,6.2441]
[1734124629708,20.0,224.05,223.94,1.6092]
[1734124629709,21.79769266,224.08,223.96,7.8459]
[1734124629894,20.0,224.07,223.96,7.8459]
[1734124630496,20.0,224.08,223.96,7.8459]
[1734124631444,20.0,224.08,223.97,6.2441]
[1734124632913,20.0,224.09,223.97,6.2441]
[1734124639219,1.79184982,224.11,223.97,6.2441]
[1734124639420,24.027864,224.13,223.97,6.2441]
[1734124639736,20.0,224.1,223.97,6.2441]
[1734124641443,0.25098,224.09,223.97,6.2441]
[1734124642035,20.0,224.1,223.97,6.2441]
[1734124642560,20.0,224.1,223.98,8.2164]
[1734124645234,0.12549,224.13,224.0,6.6058]
[1734124645838,0.12549,224.13,224.02,6.5388]
[1734124648355,20.535224,224.14,224.02,6.5388]
[1734124648839,0.535224,224.14,224.02,6.5388]
[1734124649036,0.535224,224.14,224.04,6.0658]
[1734124649942,0.535224,224.14,224.05,1.505]
[1734124650140,11.1542,224.13,224.06,6.0658]
[1734124652065,11.1562,224.09,224.06,6.0658]
[1734124653785,20.0,224.07,224.06,6.0658]
[1734124655875,20.0,224.07,224.0,1.5598]
[1734124655876,31.1577,224.06,224.0,1.5598]
[1734124656168,20.0,224.03,224.0,1.5598]
[1734124656640,11.1577,224.06,224.0,1.5598]
[1734124656841,11.1542,224.13,224.01,8.45309865]
[1734124657462,11.1542,224.13,224.0,1.5598]
[1734124658258,20.0,224.08,224.0,1.5598]
[1734124658955,20.0,224.08,224.01,6.3836]
[1734124659564,20.0,224.08,224.01,14.79203197]
[1734124659974,11.1557,224.11,224.02,8.40843197]
[1734124660367,11.1557,224.11,224.01,14.79203197]
[1734124661946,11.1557,224.11,224.02,8.40843197]
[1734124663153,11.1557,224.11,224.04,6.5832]
[1734124663655,11.1557,224.11,224.04,14.99163197]
[1734124664555,11.1557,224.11,224.04,6.5832]
[1734124689188,20.0,224.08,224.04,6.5832]
[1734124689989,11.1572,224.07,224.04,6.5832]
[1734124699803,11.1542,224.13,224.04,6.5832]
[1734124700010,11.1542,224.13,224.04,14.98849998]
[1734124700216,11.1542,224.13,224.05,23.776884]
[1734124701809,0.535224,224.14,224.05,32.18218398]
[1734124702129,0.535224,224.14,224.06,1.5889]
[1734124703010,0.535224,224.14,224.07,6.1536]
[1734124705509,11.689024,224.14,224.07,6.1536]
[1734124718038,31.1555,224.11,224.07,6.1536]
[1734124723453,31.1555,224.11,224.06,1.5889]
[1734124724240,31.1555,224.11,224.02,7.7702]
[1734124724626,53.4659,224.11,224.02,7.7702]
[1734124727856,20.0,224.06,224.02,7.7702]
[1734124728033,20.0,224.06,223.88,9.60270802]
[1734124728231,20.0,224.06,223.97,1.548]
[1734124731257,20.0,224.06,223.98,6.5784]
[1734124732751,20.0,224.02,223.93,23.902374]
[1734124732948,20.0,224.02,223.93,23.776884]
[1734124733543,11.1582,224.05,223.93,23.776884]
[1734124733744,20.0,224.05,223.93,23.776884]
[1734124734758,11.1587,224.04,223.93,23.776884]
[1734124735458,11.1587,224.04,223.96,6.6151]
[1734124743478,20.0,224.01,223.96,6.6151]
[1734124744658,20.0,224.04,223.96,6.6151]
[1734124746185,11.1592,224.03,223.96,6.6151]
[1734124749461,11.1612,223.99,223.96,6.6151]
[1734124750693,33.72858,224.03,223.96,6.6151]
[1734124750978,33.72858,224.03,223.91,6.0208]
[1734124750979,20.0,224.0,223.91,6.0208]
[1734124751761,11.1612,223.99,223.91,6.0208]
[1734124758597,20.0,224.0,223.91,6.0208]
[1734124758808,11.1612,223.99,223.91,6.0208]
[1734124759010,11.1612,223.99,223.84,7.7751]
[1734124759011,20.0,223.96,223.84,7.7751]
[1734124760293,11.1632,223.95,223.84,7.7751]
[1734124767729,11.1632,223.95,223.85,23.776884]
[1734124767913,11.1632,223.95,223.86,1.5114]
[1734124780631,20.0,223.92,223.86,1.5114]
[1734124780932,11.1652,223.91,223.86,1.5114]
[1734124781723,11.1652,223.91,223.8,6.3041]
[1734124781930,20.0,223.88,223.8,6.3041]
[1734124783319,11.1671,223.87,223.8,6.3041]
[1734124784907,31.1656,223.91,223.8,6.3041]
[1734124787910,53.496,223.91,223.8,6.3041]
[1734124789610,0.12549,223.9,223.8,6.3041]
[1734124790730,20.0,223.86,223.8,6.3041]
[1734124791719,20.0,223.88,223.8,6.3041]
[1734124791910,20.0,223.86,223.8,6.3041]
[1734124793229,31.1678,223.86,223.8,6.3041]
[1734124798613,31.1678,223.86,223.79,1.5868]
[1734124798614,53.5031,223.86,223.79,1.5868]
[1734124802434,0.25098,223.85,223.74,7.7782]
[1734124803026,20.0,223.82,223.74,7.7782]
[1734124803636,20.0,223.78,223.74,7.7782]
[1734124804737,0.12549,223.81,223.74,7.7782]
[1734124805042,44.027864,223.81,223.69,6.196]
[1734124806036,20.0,223.77,223.69,6.196]
[1734124807221,11.1726,223.76,223.69,6.196]
[1734124819268,20.0,223.73,223.69,6.196]
[1734124819696,20.0,223.73,223.57,7.8472]
[1734124819974,20.0,223.73,223.58,0.12549]
[1734124821152,20.0,223.69,223.58,23.902374]
[1734124822167,20.0,223.73,223.58,23.902374]
[1734124822371,20.0,223.74,223.58,23.902374]
[1734124822572,20.0,223.72,223.58,23.902374]
[1734124823472,20.0,223.68,223.59,0.12549]
[1734124823956,11.1751,223.71,223.61,23.776884]
[1734124824551,20.0,223.72,223.61,23.776884]
[1734124824859,20.0,223.72,223.62,0.12549]
[1734124825066,11.1731,223.75,223.65,6.2836]
[1734124825572,11.1731,223.75,223.66,23.776884]
[1734124826149,20.0,223.75,223.66,23.776884]
[1734124827220,11.1736,223.74,223.66,23.776884]
[1734124827482,20.0,223.75,223.68,23.776884]
[1734124831060,1.5539,223.85,223.68,23.776884]
[1734124831061,11.1706,223.8,223.69,0.12549]
[1734124831264,11.1706,223.8,223.7,6.1788]
[1734124831665,11.1706,223.8,223.71,23.776884]
[1734124832064,33.5059,223.84,223.71,23.776884]
[1734124832459,20.0,223.81,223.71,23.776884]
[1734124833381,11.1706,223.8,223.71,23.776884]
[1734124836971,11.1706,223.8,223.73,23.776884]
[1734124840767,80.14218453,223.91,223.74,0.12549]
[1734124841095,33.4969,223.9,223.76,25.565674]
[1734124841381,33.4969,223.9,223.77,0.12549]
[1734124843389,20.0,223.87,223.77,0.12549]
[1734124846371,11.1676,223.86,223.76,25.565674]
[1734124851678,20.0,223.83,223.76,1.6633]
[1734124851883,20.0,223.87,223.76,1.6633]
[1734124852080,100.94628453,223.9,223.76,1.6633]
[1734124852081,20.0,223.83,223.76,1.6633]
[1734124853277,11.1696,223.82,223.76,1.6633]
[1734124853679,20.0,223.79,223.76,1.6633]
[1734124854485,20.0,223.82,223.76,1.6633]
[1734124855200,20.0,223.82,223.77,23.776884]
[1734124856979,20.0,223.82,223.76,1.6633]
[1734124858295,11.1701,223.81,223.76,1.6633]
[1734124858489,20.0,223.78,223.71,1.6266]
[1734124858689,0.25098,223.77,223.66,1.6266]
[1734124860009,20.0,223.73,223.66,1.6266]
[1734124860700,20.0,223.73,223.68,30.0]
[1734124860910,20.0,223.69,223.68,30.0]
[1734124863929,20.0,223.69,223.66,1.6266]
[1734124866100,22.3453,223.76,223.66,1.6266]
[1734124866303,20.0,223.73,223.66,1.6266]
[1734124867208,11.1746,223.72,223.66,1.6266]
[1734124872209,11.1746,223.72,223.67,30.0]
[1734124874808,11.1706,223.8,223.68,23.776884]
[1734124875126,11.1706,223.8,223.68,53.776884]
[1734124875328,11.1706,223.8,223.69,0.25098]
[1734124875507,11.1706,223.8,223.71,23.776884]
[1734124876011,11.1706,223.8,223.71,53.776884]
[1734124876211,11.1691,223.83,223.71,53.776884]
[1734124876735,20.0,223.8,223.71,53.776884]
[1734124877911,20.0,223.82,223.71,53.776884]
[1734124878126,20.0,223.81,223.71,53.776884]
[1734124878914,11.1706,223.8,223.71,53.776884]
[1734124879125,20.0,223.77,223.71,53.776884]
[1734124879433,20.0,223.77,223.71,30.0]
[1734124880512,20.0,223.8,223.71,30.0]
[1734124882038,11.1711,223.79,223.71,30.0]
[1734124883313,11.173,223.76,223.71,30.0]
[1734124883513,20.0,223.73,223.7,6.1075]
[1734124884338,11.173,223.76,223.7,6.1075]
[1734124884641,20.0,223.75,223.7,6.1075]
[1734124885517,20.0,223.75,223.71,30.0]
[1734124887251,11.1728,223.76,223.71,30.0]
[1734124888239,20.0,223.8,223.71,30.0]
[1734124889336,11.1711,223.79,223.71,30.0]
[1734124894851,11.1711,223.79,223.7,6.1075]
[1734124898032,11.1711,223.79,223.71,30.0]
[1734124898433,11.1711,223.79,223.7,6.1075]
[1734124898836,12.98566074,223.79,223.7,6.1075]
[1734124899841,11.1711,223.79,223.7,6.1075]
[1734124900940,11.1711,223.79,223.71,30.0]
[1734124901142,20.0,223.76,223.71,30.0]
[1734124902055,11.1731,223.75,223.7,6.1075]
[1734124903044,11.1731,223.75,223.66,1.6266]
[1734124903454,11.1731,223.75,223.68,30.0]
[1734124921252,33.5194,223.75,223.64,6.1583]
[1734124921452,33.5194,223.75,223.65,30.0]
[1734124921654,20.0,223.72,223.65,30.0]
[1734124923195,11.1751,223.71,223.65,30.0]
[1734124923755,11.1751,223.71,223.6,1.6577]
[1734124923970,11.1751,223.71,223.61,30.0]
[1734124926555,33.5254,223.71,223.61,30.0]
[1734124927256,20.0,223.68,223.61,30.0]
[1734124928361,11.1771,223.67,223.61,30.0]
[1734124931657,11.1741,223.73,223.61,30.0]
[1734124932455,11.1741,223.73,223.62,23.776884]
[1734124932870,11.1741,223.73,223.63,30.0]
[1734124933264,20.0,223.7,223.63,30.0]
[1734124933869,11.1756,223.7,223.63,30.0]
[1734124942290,20.0,223.72,223.64,23.776884]
[1734124942479,11.1741,223.74,223.65,30.0]
[1734124942682,11.1741,223.74,223.66,23.776884]
[1734124943283,11.1741,223.74,223.65,30.0]
[1734124943482,11.1741,223.74,223.66,30.0]
[1734124944488,20.0,223.71,223.66,30.0]
[1734124945188,20.0,223.71,223.63,30.0]
[1734124945489,11.1756,223.7,223.62,6.0096]
[1734124949210,11.1756,223.7,223.63,23.776884]
[1734124959281,11.1756,223.7,223.59,0.12549]
[1734124959583,11.1756,223.7,223.59,23.902374]
[1734124959894,20.0,223.67,223.59,23.902374]
[1734124960413,20.0,223.69,223.59,23.902374]
[1734124961207,20.0,223.69,223.59,23.776884]
[1734124961804,20.0,223.69,223.55,17.78523273]
[1734124962349,11.1776,223.66,223.56,0.12549]
[1734124962476,11.1776,223.66,223.55,11.50933273]
[1734124963300,11.1776,223.66,223.56,23.776884]
[1734124963500,12.8029,223.66,223.56,23.776884]
[1734124964280,20.0,223.63,223.55,11.50933273]
[1734124965307,11.1796,223.62,223.55,11.50933273]
[1734124975415,20.0,223.59,223.55,11.50933273]
[1734124975601,21.5042,223.59,223.47,23.776884]
[1734124975804,21.5042,223.59,223.48,30.0]
[1734124976597,21.5042,223.59,223.42,1.5048]
[1734124976925,21.5042,223.59,223.44,30.0]
[1734124977499,33.5449,223.58,223.43,0.12549]
[1734124977693,20.0,223.55,223.43,0.12549]
[1734124978705,11.1836,223.54,223.43,23.902374]
[1734124979913,20.0,223.51,223.35,0.535224]
[1734124980115,20.0,223.49,223.37,30.0]
[1734124981024,11.1866,223.48,223.37,30.0]
[1734124981821,20.0,223.45,223.37,30.0]
[1734124982906,11.1886,223.44,223.35,0.535224]
[1734124985126,20.0,223.41,223.35,0.535224]
[1734124985305,20.0,223.39,223.35,0.535224]
[1734124986030,20.0,223.39,223.35,2.4e-05]
[1734124986832,20.0,223.39,223.28,2.43270698]
[1734124987029,20.0,223.35,223.28,2.43270698]
[1734124987326,20.0,223.31,223.28,2.43270698]
[1734124993303,22.3854,223.36,223.28,2.43270698]
[1734124993507,20.0,223.33,223.28,2.43270698]
[1734124993732,20.0,223.32,223.28,2.43270698]
[1734124994816,11.1951,223.31,223.28,2.43270698]
[1734124995020,20.0,223.29,223.28,6.98e-06]
[1734124995224,44.027864,223.28,223.15,30.0]
[1734124996525,20.0,223.24,223.15,30.0]
[1734124996835,11.1972,223.27,223.16,8.65627998]
[1734124997135,11.1972,223.27,223.17,23.776884]
[1734124997533,11.1972,223.27,223.16,24.027864]
[1734124997831,11.1972,223.27,223.16,23.776884]
[1734124998042,11.1972,223.27,223.15,23.776884]
[1734124998832,20.0,223.24,223.13,24.312108]
[1734124999016,20.0,223.24,223.13,0.535224]
[1734124999218,20.0,223.24,223.13,30.535224]
[1734124999812,20.0,223.24,223.13,0.535224]
[1734125000020,11.1991,223.24,223.13,0.535224]
[1734125000618,11.1991,223.24,223.13,24.312108]
[1734125001627,11.1991,223.24,223.13,0.535224]
[1734125002019,20.0,223.21,223.13,0.535224]
[1734125002224,31.2003,223.21,223.13,0.535224]
[1734125004138,32.7927,223.21,223.13,0.535224]
[1734125008728,20.0,223.2,223.13,0.535224]
[1734125008926,20.0,223.18,223.13,0.535224]
[1734125010945,20.0,223.14,223.13,0.535224]
[1734125014433,11.2022,223.17,223.13,0.535224]
[1734125016445,12.7929,223.21,223.13,0.535224]
[1734125016646,20.0,223.18,223.13,0.535224]
[1734125017939,11.2005,223.21,223.13,0.535224]
[1734125018151,11.2005,223.21,223.13,24.312108]
[1734125020261,11.2005,223.21,223.13,0.535224]
[1734125021342,9.38799331,223.25,223.13,0.535224]
[1734125021539,20.0,223.21,223.13,0.535224]
[1734125024229,20.0,223.21,223.13,0.535224]
[1734125026536,20.0,223.21,223.13,24.312108]
[1734125028258,11.1987,223.24,223.13,24.312108]
[1734125028455,20.0,223.21,223.13,0.535224]
[1734125029749,20.0,223.25,223.13,0.535224]
[1734125029941,31.1982,223.25,223.13,0.535224]
[1734125033244,24.027864,223.24,223.13,0.535224]
[1734125033439,20.0,223.21,223.13,0.535224]
[1734125034362,11.2007,223.2,223.13,0.535224]
[1734125037465,11.2027,223.16,223.13,0.535224]
[1734125038748,20.0,223.21,223.13,0.535224]
[1734125038967,20.0,223.17,223.13,0.535224]
[1734125041772,11.2011,223.2,223.13,0.535224]
[1734125041947,20.0,223.2,223.13,0.535224]
[1734125043466,31.2011,223.2,223.13,0.535224]
[1734125047460,11.2011,223.2,223.13,0.535224]
[1734125048352,22.3964,223.25,223.13,0.535224]
[1734125048551,11.199,223.24,223.13,8.94052398]
[1734125048753,11.199,223.24,223.14,8.40529998]
[1734125048948,11.199,223.24,223.15,8.40529998]
[1734125049368,11.199,223.24,223.14,24.153354]
[1734125050679,11.199,223.24,223.14,32.55865398]
[1734125051080,20.0,223.26,223.16,0.12549]
[1734125051278,11.1962,223.29,223.17,1.5593]
[1734125051669,13.90448387,223.29,223.17,1.5593]
[1734125052472,20.0,223.26,223.17,1.5593]
[1734125054877,20.0,223.26,223.17,9.96459998]
[1734125055057,20.0,223.26,223.19,6.542]
[1734125056663,20.0,223.27,223.19,6.542]
[1734125058763,20.0,223.23,223.19,6.542]
[1734125061080,20.0,223.27,223.19,6.542]
[1734125061285,20.0,223.26,223.19,6.542]
[1734125062085,20.0,223.26,223.17,1.5593]
[1734125062292,20.0,223.22,223.17,1.5593]
[1734125063495,11.2002,223.21,223.17,1.5593]
[1734125072904,20.0,223.22,223.17,1.5593]
[1734125073103,11.1986,223.25,223.17,1.5593]
[1734125074095,22.3914,223.3,223.17,1.5593]
[1734125074407,20.0,223.27,223.17,1.5593]
[1734125075300,11.1977,223.26,223.17,1.5593]
[1734125086821,11.1977,223.26,223.18,0.25098]
[1734125087018,11.1977,223.26,223.18,8.65627998]
[1734125087221,11.1977,223.26,223.18,0.25098]
[1734125092422,11.1977,223.26,223.18,24.027864]
[1734125092713,11.1962,223.29,223.2,0.25098]
[1734125092921,11.1962,223.29,223.2,24.027864]
[1734125093917,20.0,223.32,223.2,24.027864]
[1734125095217,11.1951,223.31,223.2,24.027864]
[1734125095593,20.0,223.28,223.2,24.027864]
[1734125095813,20.0,223.28,223.2,0.25098]
[1734125096222,20.0,223.32,223.2,0.25098]
[1734125096524,20.0,223.31,223.2,0.25098]
[1734125099000,11.1957,223.3,223.2,0.25098]
[1734125100019,11.1957,223.3,223.19,6.0034]
[1734125101021,11.1957,223.3,223.2,24.027864]
[1734125101395,20.0,223.27,223.19,6.0034]
[1734125101621,20.0,223.26,223.19,6.0034]
[1734125102699,11.1982,223.25,223.19,6.0034]
[1734125121627,33.5946,223.25,223.19,6.0034]
[1734125125133,20.0,223.22,223.19,6.0034]
[1734125125437,11.2002,223.21,223.19,6.0034]
[1734125131538,11.1977,223.26,223.19,6.0034]
[1734125131919,11.1977,223.26,223.2,24.027864]
[1734125132322,11.1977,223.26,223.21,1.5339]
[1734125132525,1.6045,223.36,223.21,1.5339]
[1734125132729,20.0,223.32,223.21,1.5339]
[1734125133730,11.1951,223.31,223.21,1.5339]
[1734125142921,20.0,223.28,223.21,1.5339]
[1734125144932,20.0,223.24,223.19,6.0034]
[1734125146146,11.1992,223.23,223.19,6.0034]
[1734125149132,20.0,223.2,223.19,6.0034]
[1734125149469,20.0,223.2,223.16,1.563]
[1734125150522,11.2012,223.19,223.16,1.563]
[1734125151452,20.0,223.23,223.16,1.563]
[1734125151665,20.0,223.23,223.16,9.96829998]
[1734125153367,31.1991,223.24,223.16,1.563]
[1734125161554,11.1957,223.3,223.18,15.07089998]
[1734125162261,11.1957,223.3,223.18,6.6656]
[1734125162496,33.5871,223.3,223.18,6.6656]
[1734125162654,20.0,223.27,223.18,6.6656]
[1734125163783,11.1977,223.26,223.18,6.6656]
[1734125167881,11.1977,223.26,223.19,24.027864]
[1734125168199,11.1977,223.26,223.2,1.621]
[1734125173085,20.0,223.23,223.2,1.621]
[1734125173480,20.0,223.23,223.18,6.6656]
[1734125173679,20.0,223.23,223.14,1.5078]
[1734125175681,20.0,223.19,223.14,1.5078]
[1734125177324,11.2017,223.18,223.14,1.5078]
[1734125181187,11.2017,223.18,223.13,7.048324]
[1734125183124,20.0,223.15,223.13,0.535224]
[1734125183420,31.2034,223.15,223.13,2.4e-05]
[1734125189253,53.6098,223.15,223.04,10.0]
[1734125195872,20.0,223.1,223.04,10.0]
[1734125197158,11.2062,223.09,223.04,10.0]
[1734125221796,20.0,223.12,223.04,10.0]
[1734125222899,22.4064,223.15,223.06,0.12549]
[1734125226392,11.2043,223.13,223.06,0.12549]
[1734125228101,20.0,223.12,223.04,10.0]
[1734125229309,11.2052,223.11,223.04,10.0]
[1734125237201,20.0,223.08,223.04,10.0]
[1734125238521,11.2072,223.07,223.04,10.0]
[1734125242973,20.0,223.05,223.04,10.0]
[1734125243135,20.0,223.05,223.04,3.3398]
[1734125243336,20.0,223.05,223.04,0.0165]
[1734125246153,11.2072,223.07,223.04,0.0165]
[1734125247361,22.4064,223.15,223.04,0.0165]
[1734125247566,33.6096,223.15,223.04,0.0165]
[1734125248484,20.0,223.08,223.04,0.0165]
[1734125249774,20.0,223.11,223.04,0.0165]
[1734125250777,11.2057,223.1,223.04,0.0165]
[1734125252664,11.2057,223.1,223.05,7.6368]
[1734125253569,22.4074,223.14,223.05,7.6368]
[1734125254399,20.0,223.11,223.05,7.6368]
[1734125254888,22.4006,223.21,223.07,8.53078998]
[1734125255092,22.4006,223.21,223.07,0.12549]
[1734125256187,11.2022,223.17,223.07,0.12549]
[1734125257378,11.2022,223.17,223.08,8.53078998]
[1734125257583,11.2022,223.17,223.09,23.776884]
[1734125258867,11.2022,223.17,223.09,53.776884]
[1734125259693,11.2001,223.22,223.12,0.25098]
[1734125261266,20.0,223.19,223.12,0.25098]
[1734125261980,31.1992,223.23,223.1,7.7441]
[1734125262784,53.5976,223.23,223.1,7.7441]
[1734125266590,20.0,223.17,223.1,7.7441]
[1734125268186,31.2027,223.17,223.1,7.7441]
[1734125281480,31.2027,223.17,223.1,7.68592413]
[1734125323236,20.0,223.19,223.1,7.68592413]
[1734125325011,31.2017,223.19,223.11,24.027864]
[1734125325936,11.1997,223.22,223.13,32.43316398]
[1734125326138,11.1981,223.26,223.13,33.10516455]
[1734125326326,11.1981,223.26,223.15,24.027864]
[1734125326914,22.395,223.27,223.15,24.027864]
[1734125327137,22.395,223.27,223.15,54.027864]
[1734125327435,22.395,223.27,223.17,24.027864]
[1734125328014,11.1962,223.29,223.17,24.027864]
[1734125329341,11.1962,223.29,223.17,54.027864]
[1734125329647,20.0,223.26,223.17,54.027864]
[1734125330115,20.0,223.26,223.17,30.0]
[1734125330539,20.0,223.26,223.16,6.6075]
[1734125331628,11.1982,223.25,223.16,6.6075]
[1734125338837,20.0,223.22,223.16,6.6075]
[1734125341244,20.0,223.18,223.16,6.6075]
[1734125343864,20.0,223.18,223.14,1.6397]
[1734125344569,20.0,223.22,223.14,1.6397]
[1734125344749,33.5961,223.24,223.14,1.6397]
[1734125344750,20.0,223.21,223.14,1.6397]
[1734125345982,20.0,223.17,223.14,1.6397]
[1734125346963,20.0,223.2,223.14,1.6397]
[1734125348065,11.2012,223.19,223.14,1.6397]